Cogmind - Beta 13 @@@ ROGUE MODE // 2024.05.06 @ 19:47:09 Player: BionicBot Result: Destroyed by F5-A5L(R) with Subdweller Laser Performance ------------- Evolutions (0) 0 Regions Visited (2) 400 Robots Destroyed (40) 200 Value Destroyed (988) 988 Prototype IDs (3) 60 Alien Tech Used (0) 0 Bonus (0) 0 TOTAL SCORE: 1648 Bonus ------- None Cogmind --------- Core Integrity 0/250 Matter 309/500 Energy 179/200 System Corruption 7% Temperature Cool (8) Movement Rolling (120) Ox1 Location -10/Subcaves Parts ------- > --- POWER (1) -------- Subdweller Power Source > --- PROPULSION (2) --- Subdweller Monowheel Subdweller Monowheel > --- UTILITY (2) ------ Large Storage Unit High-capacity Matter Pod > --- WEAPON (2) ------- Subdweller Beam Cannon Subdweller Machine Gun > --- INVENTORY (15) --- Subdweller Power Source Light Treads Light Treads Subdweller Monowheel Huge Storage Unit Structural Scanner Subdweller Optics Subdweller Optics Signal Interpreter Particle Gun Beam Cannon Beam Cannon Grenade Launcher Datajack Mining Laser Peak State ------------ > --- POWER ------------ Subdweller Power Source > --- PROPULSION ------- Subdweller Monowheel Subdweller Monowheel > --- UTILITY ---------- Large Storage Unit High-capacity Matter Pod > --- WEAPON ----------- Subdweller Beam Cannon Subdweller Machine Gun > --- INVENTORY -------- Subdweller Power Source Light Treads Light Treads Subdweller Monowheel Huge Storage Unit Structural Scanner Subdweller Optics Subdweller Optics Signal Interpreter Particle Gun Beam Cannon Beam Cannon Grenade Launcher Datajack Mining Laser [Rating: 14] Favorites ----------- Power Light Nuclear Core Engine Ion Engine Power Core Light Nuclear Core Propulsion Wheel Treads Light Treads Wheel Wheel Utility Large Storage Unit Device Structural Scanner Storage Large Storage Unit Processor Visual Processing Unit Protection Light Armor Plating Weapon Beam Cannon Energy Gun Medium Laser Energy Cannon Beam Cannon Ballistic Gun Subdweller Machine Gun Launcher Grenade Launcher Special Weapon Mining Laser Build | -11 -10 -10 ------- Run | Yrd Mat Sub Slots Evolved . | . . . Power . | . . . Propulsion . | . . . Utility . | . . . Weapon . | . . . Parts Attached 46 | 8 21 17 Power 6 | 1 3 2 Engine 5 | 1 2 2 Core 1 | . 1 . Reactor . | . . . Propulsion 16 | 4 8 4 Treads 3 | 1 2 . Leg . | . . . Wheel 13 | 3 6 4 Hover . | . . . Flight . | . . . Utility 8 | 1 5 2 Device 1 | . 1 . Storage 5 | 1 3 1 Processor 1 | . 1 . Hackware . | . . . Protection 1 | . . 1 Artifact . | . . . Weapon 16 | 2 5 9 Energy Gun 4 | 2 2 . Energy Cannon 6 | . 2 4 Ballistic Gun 1 | . . 1 Ballistic Cannon . | . . . Launcher 4 | . . 4 Special Weapon 1 | . 1 . Impact Weapon . | . . . Slashing Weapon . | . . . Piercing Weapon . | . . . Special Melee Weapon . | . . . Unidentified Prototypes . | . . . Parts Lost 10 | . 6 4 Power 2 | . 2 . Propulsion 3 | . 2 1 Utility 1 | . . 1 Weapon 4 | . 2 2 Highest Loss Streak 2 | . 2 2 To Critical Strikes . | . . . Average Slot Usage (%) 96 | . 96 98 Engine 8 | . 5 13 Core 5 | . 8 . Wheel 27 | . 27 27 Device 1 | . 1 . Storage 17 | . 14 23 Processor 6 | . 9 . Protection 1 | . . 4 Energy Gun 12 | . 19 . Energy Cannon 11 | . 7 20 Ballistic Gun 1 | . . 4 Naked Turns . | . . . Heaviest Build 41 | 14 32 41 Greatest Support 40 | 20 40 40 Greatest Overweight (x) 2 | . 1 2 Average Overweight (x) . | . . . Largest Inventory Capacity 25 | 8 25 15 Average Capacity 11 | 7 10 15 Most Carried 15 | 5 15 15 Average Carried 10 | 3 8 14 Final Capacity 15 | 8 15 15 Final Carried 15 | 5 15 15 Class Distribution -------------------- 67% | Mutant 32% | Scavenger-Mutant Dominant Class ---------------- Mutant | -10/Materials Mutant | -10/Subcaves Resources | -11 -10 -10 ----------- Run | Yrd Mat Sub Matter Collected 1056 | 280 404 372 Remotely . | . . . Salvage Created 1142 | 85 755 302 Parts 68 | 4 45 19 Haulers Intercepted 2 | . 2 . Recyclers Shooed 1 | . 1 . Parts Field Recycled . | . . . Retrieved Matter . | . . . Parts Self-Destructed 5 | . . 5 Prevented . | . . . Kills | -11 -10 -10 ------- Run | Yrd Mat Sub Combat Hostiles Destroyed 21 | . 9 12 Guns 8 | . 7 1 Cannons 6 | . . 6 AOE 7 | . 2 5 Classes Destroyed 9 | 1 7 1 Worker 1 | . 1 . Builder 2 | . 2 . Tunneler 7 | 4 3 . Hauler 2 | . 2 . Recycler 2 | . 2 . Operator 2 | . 2 . Watcher 3 | . 3 . Grunt 10 | . 9 1 Subdweller 11 | . . 11 Best Kill Streak 4 | 2 4 3 Combat Bots Only 4 | . 4 3 Max Kills in Single Turn 1 | 1 1 1 Gunslinging . | . . . Exploded 1 | . 1 1 Melee . | . . . Uniques/NPCs Destroyed . | . . . Combat | -11 -10 -10 -------- Run | Yrd Mat Sub Hostile Shots Fired 100 | . 50 50 Missed 28 | . 12 16 Damage Taken 1358 | . 648 710 Core 257 | . 143 114 Absorbed by Shields . | . . . Core Remaining (%) 100 | 100 . . Volleys Fired 155 | 21 91 43 Largest 2 | 1 2 2 Hottest 140 | 50 125 140 Shots Fired 257 | 21 151 85 Gun 168 | 21 133 14 Cannon 56 | . 3 53 Launcher 18 | . . 18 Special 15 | . 15 . Kinetic 23 | . . 23 Thermal 221 | 21 147 53 Explosive 9 | . . 9 Electromagnetic 4 | . 4 . Robot Hit Streak 21 | 8 11 21 Robot Miss Streak 4 | 2 4 2 Penetration Max . | . . . Secondary Targets . | . . . Shots Hit Robots 147 | 17 75 55 Core Hits 68 | 4 39 25 Critical Kills . | . . . Critical Parts Destroyed . | . . . Critical Strikes 7 | . 7 . Burn 6 | . 6 . Corrupt 1 | . 1 . Melee Attacks . | . . . Impact . | . . . Slashing . | . . . Piercing . | . . . Sneak Attacks . | . . . Combat Hostiles . | . . . Follow-up Attacks . | . . . Damage Inflicted 3375 | 211 1166 1998 Guns 1344 | 211 940 193 Cannons 629 | . 17 612 Explosions 1306 | . 113 1193 Melee . | . . . Ramming . | . . . Kinetic 807 | . . 807 Thermal 1932 | 211 1109 612 Explosive 579 | . . 579 Electromagnetic 57 | . 57 . Impact . | . . . Slashing . | . . . Piercing . | . . . Highest Corruption 7 | . 7 7 Average Corruption 6 | . 5 7 Corruption Purged . | . . . Corruption Blocked . | . . . Effects 33 | . 10 23 Message Errors 9 | . 4 5 Matter Fused 12 | . 5 7 Energy Discharges 4 | . 1 3 Parts Rejected 2 | . . 2 Data Loss (minor) 2 | . . 2 Data Loss (major) 2 | . . 2 Misfires 1 | . . 1 Weapon Failures 1 | . . 1 Overload Shots . | . . . Overflow Damage 4 | . 4 . Projectiles 4 | . 4 . Explosions . | . . . Melee . | . . . Knockbacks . | . . . Impact . | . . . Kinetic . | . . . Secondary . | . . . Self-Inflicted Damage 39 | . 30 9 Shots 2 | . 1 1 Rammed . | . . . Targets Rammed . | . . . Kicked . | . . . Crushed . | . . . Highest Temperature 372 | 60 372 72 Average Temperature 78 | 20 92 25 Received Heat Transfer 429 | . 291 138 Effects 4 | . 4 . Energy Bleed 1 | . 1 . Interference 2 | . 2 . Matter Decay 1 | . 1 . Siege Activations . | . . . Robots Corrupted . | . . . Combat Hostiles . | . . . Parts Fried . | . . . Impact Corruptions . | . . . Robots Melted . | . . . Combat Hostiles . | . . . Parts Melted 5 | 1 3 1 Heat Transferred 4964 | 629 3188 1147 Parts Sabotaged . | . . . Parts Stolen . | . . . Parts Stripped . | . . . Power Chain Reactions 2 | . 2 . Alert | -11 -10 -10 ------- Run | Yrd Mat Sub Peak Influence 250 | 20 250 . Initial 13 | . 13 . Average 64 | 6 70 . Maximum Alert Level 1 | . 1 . Low Security (%) 93 | 100 92 . Level 1 6 | . 7 . Level 2 . | . . . Level 3 . | . . . Level 4 . | . . . Level 5 . | . . . High Security . | . . . Max Security . | . . . Squads Dispatched 2 | . 2 . Investigation . | . . . Extermination . | . . . Reinforcement 2 | . 2 . Assault . | . . . Garrison . | . . . Intercept . | . . . Searches Triggered . | . . . Construction Impeded . | . . . Haulers Reinforced . | . . . Active Scanning Responses . | . . . Cargo Convoy Interrupts . | . . . Stealth | -11 -10 -10 --------- Run | Yrd Mat Sub Distress Signals 2 | . 2 . Communications Jammed . | . . . Distress Signals . | . . . Times Spotted 39 | . 23 16 Peak Tracking Total 3 | . 3 3 Tactical Retreats . | . . . Traps | -11 -10 -10 ------- Run | Yrd Mat Sub Traps Triggered 8 | . 8 . Indirectly . | . . . Trap Hack Attempts . | . . . Triggered . | . . . Disarmed . | . . . Reprogrammed . | . . . Reused . | . . . Traps Extracted . | . . . Installed . | . . . Triggered 2 | . . 2 Machines | -11 -10 -10 ---------- Run | Yrd Mat Sub Machines Disabled . | . . . Max in Single Turn . | . . . Machines Repaired . | . . . Machines Dismantled . | . . . Machines Sabotaged . | . . . Overloaded Fab Kills . | . . . Hacking | -11 -10 -10 --------- Run | Yrd Mat Sub Machines Accessed 5 | . 5 . Terminals 5 | . 5 . Fabricators . | . . . Repair Stations . | . . . Recycling Units . | . . . Scanalyzers . | . . . Garrison Access . | . . . Total Hacks 16 | . 16 . Successful 4 | . 4 . Failed 12 | . 12 . Catastrophic 2 | . 2 . Database Lockouts . | . . . Manual 14 | . 14 . Terminals 16 | . 16 . Fabricators . | . . . Repair Stations . | . . . Recycling Units . | . . . Scanalyzers . | . . . Garrison Access . | . . . Terminal Hacks 3 | . 3 . Robot Analysis 1 | . 1 . Prototype ID Bank 2 | . 2 . Fabricator Hacks . | . . . Repair Station Hacks . | . . . Recycling Unit Hacks . | . . . Scanalyzer . | . . . Garrison Access Hacks . | . . . Unauthorized Hacks 1 | . 1 . Terminals 1 | . 1 . Botnet 1 | . 1 . Fabricators . | . . . Repair Stations . | . . . Recycling Units . | . . . Scanalyzers . | . . . Garrison Access . | . . . Data Cores Recovered . | . . . Used . | . . . Hacking Detections 5 | . 5 . Full Trace Events . | . . . Feedback Events . | . . . Feedback Blocked . | . . . Robot Schematics Acquired . | . . . Robots Built . | . . . Authchips . | . . . Time . | . . . Total Robot Build Rating . | . . . Part Schematics Acquired . | . . . Parts Built . | . . . Authchips . | . . . Time . | . . . Total Part Build Rating . | . . . Parts Repaired . | . . . Time . | . . . Parts Recycled . | . . . Recycled Matter . | . . . Retrieved Matter . | . . . Retrieved Components . | . . . Parts Scanalyzed . | . . . Part Schematics Acquired . | . . . Parts Damaged . | . . . Bothacking | -11 -10 -10 ------------ Run | Yrd Mat Sub Used RIF Installer . | . . . Robots Hacked . | . . . Non-combat . | . . . Combat . | . . . Robot Hacks Applied . | . . . Relay Couplers Released . | . . . Fabnet Peak Effective % . | . . . Robots Rewired . | . . . Allies Hacked . | . . . Hacks Repelled . | . . . Allies | -11 -10 -10 -------- Run | Yrd Mat Sub Total Allies . | . . . Largest Group . | . . . Highest-Rated Group . | . . . Highest-Rated Ally . | . . . Total Orders . | . . . Ally Attacks . | . . . Total Damage . | . . . Kills . | . . . Allies Corrupted . | . . . Allies Melted . | . . . Intel | -11 -10 -10 ------- Run | Yrd Mat Sub Robot Analysis Total 1 | . 1 . Derelict Logs Recovered . | . . . Drone Launches . | . . . Drone Recoveries . | . . . Exploration | -11 -10 -10 ------------- Run | Yrd Mat Sub Turns Passed 2285 | 150 1394 741 Spaces Moved 1804 | 117 1151 536 Core 8 | 8 . . Treads 8 | . 8 . Legs . | . . . Wheels 1788 | 109 1143 536 Hover . | . . . Flight . | . . . Fastest Speed 50 | 50 80 95 Average Speed 91 | 77 85 107 Slowest Speed 160 | 80 160 120 Overloaded Moves . | . . . Propulsion Burnouts . | . . . Robots Hopped . | . . . Cave-ins Triggered . | . . . Exploration Rate (%) 48 | 6 99 39 Regions Visited 2 Branch Regions 1 Pre-discovered Areas . | . . . Known Exits Taken . | . . . Unknown Exits Taken 2 | 1 1 . Scrap Searched 2 | . . 2 Spaces Dug . | . . . Terrain Destroyed 161 | . 8 153 Melee . | . . . Projectile 5 | . . 5 AOE 156 | . 8 148 Terrain Rammed . | . . . Walls Destroyed . | . . . Machines Disabled . | . . . Actions | -11 -10 -10 --------- Run | Yrd Mat Sub Total 2142 | 151 1373 618 Wait 92 | . 87 5 Move 1802 | 116 1150 536 Hop . | . . . Pick Up 28 | 6 14 8 Fast Attach 13 | 5 5 3 Attach 12 | 1 5 6 Detach 5 | . 3 2 Swap 21 | 2 11 8 Drop 14 | . 7 7 Fire 155 | 21 91 43 Melee . | . . . Ram . | . . . Kick . | . . . Crush . | . . . Escape Stasis . | . . . Rewire . | . . . Trap . | . . . Miscellaneous . | . . . Route ------- -11/Scrapyard -10/Materials (discovered 6 exits: [*Mat x3] / [*Min x2] / [*Sub]) -10/Subcaves History --------- Turn | Location | Event 16 | -11/Scrapyard | Discovered new exit (range 15) 151 | -11/Scrapyard | Entered Materials 323 | -10/Materials | Build established: Mutant 397 | -10/Materials | Discovered new exit (range 6) 440 | -10/Materials | Discovered new exit (range 9) 547 | -10/Materials | Discovered new exit (range 10) 768 | -10/Materials | Build established: Scavenger-Mutant 1014 | -10/Materials | Discovered new exit (range 4) 1164 | -10/Materials | Core integrity fell below 50% 1255 | -10/Materials | Discovered new exit (range 13) 1428 | -10/Materials | Build established: Mutant 1528 | -10/Materials | Discovered new exit (range 5) 1545 | -10/Materials | Entered Subcaves 1648 | -10/Subcaves | Disturbed a concealed Subdweller 1653 | -10/Subcaves | Ambushed by Subdweller buried in earth 1656 | -10/Subcaves | Ambushed by Subdweller buried in earth 1668 | -10/Subcaves | Ambushed by Subdweller buried in earth 2193 | -10/Subcaves | Ambushed by Subdwellers from Twisted Machinery 2266 | -10/Subcaves | Core integrity fell below 20% 2286 | -10/Subcaves | Destroyed by F5-A5L(R) with Subdweller Laser Last Messages --------------- 02212_ Destroyed Scrap Shield. 02212_ V9-UK6(R) destroyed. 02213_ System corrupted: Sub. Monowheel rejected. 02215_ BU-MCF(R) destroyed. 02218_ GR-WUJ(R) destroyed. 02227_ Acquired 3 matter. 02231_ The unstable cave ceiling collapses. 02231_ Dropped Sub. Power Source. 02232_ Acquired Sub. Power Source. 02235_ System corrupted: Energy discharge (-24). 02238_ Acquired Sub. Power Source. 02239_ Dropped Lgt. Ion Engine. 02242_ Acquired Sub. Monowheel. 02252_ GR96IP 02268_ G-47 Trooper destroyed. 02272_ Acquired 32 matter. 02273_ Aluminum Leg fries itself beyond repair. 02275_ System corrupted: Matter fused (-5). 02276_ Aluminum Leg fries itself beyond repair. Map ----- +----------------------------------------------------+ | ?????????????????????????????????????????????????? | | ?????????????????????????????????????????????????? | | ?????????????????????????????????????????????????? | | ?????????????????????????????????????????????????? | | ?????????????????????????????????????????????????? | | ?????????????????????????????????????????????????? | | ?????????????????????????????????????????????????? | | ?????????????????????????????????????????????????? | | ?????????????????????????????????????????????????? | | ?????????????????????????????????????????????????? | | ?????????????????????????????????????????????????? | | ?????????????????????????????????????????????????? | | ??????????????????????##?????????????????????????? | | ????????????????????### ????????????????????????? | | ????????????????????# ????????????????????????? | | ????????????????????# ????????????????????????? | | ????????????????? ?# ????????????????????????? | | ?????????????????? "" ????????????????????????? | | ?????????????????""""" ????????????????????????? | | ?????????????????""" " ????????????????????????? | | ??????????????????# ##??????????????????????? | | ??????????????##### "R #####??????????????????? | | ???????????? # "" "R "####???????????????? | | ???????????# " #???? ??????????? | | ???????????? """" ????? "?????????? | | ???????????????# # #;@ """" ????# "?????????? | | ?????????????? "" """" ???? "##???????? | | ???????????? " "##" ????# ""#???????? | | ???????????? # ## #### ##????### " ##???????? | | ???????????????????????# "#?????# ## ""#???????? | | ???????????????????????# "##????## # ""###??????? | | ???????????????????????# ##?###"" "" ###????? | | ???????????????????????#" "### """ ""#????? | | ???????????????????????### "" "#?????? | | ??###??????????????????#" # ##?????? | | ### #??????????????????# ### & #?????? | | #?????????????????# ## * ## ##?????? | | ##????????????????### # & ! #?????? | | ##?????#####???????# ## & #?????? | | #?????# #??????# ###### & ##?????? | | ####### #??????# ####???# # ##??????? | | ## #####??### #??????#### ##?????? | | ##???##?????????### #?????? | | ###??????????? ### = ##????? | | #### ### # ####???????# ### #????? | | ???## ### #??## #??????# #?# ##????? | | ##??#### ## #????# #????## #?# ##????? | | #### ## #### ##???## #??## #?## #????? | | ###?## ##### #### #??## ##????? | | #???# ### ## #?????#" #?????? | +----------------------------------------------------+ Best States ------------- Heat Dissipation 25 Energy Generation 15 Energy Capacity 250 Matter Stores 460 Matter Capacity 500 Sight Range 18 Terrain Scan Density 10 Armor Coverage 150 Evasion (%) 44 Recoil Reduction 2 Item Schematics ----------------- None Robot Schematics ------------------ None Fabricated ------------ Nothing Alien Tech Used ----------------- None Achievements -------------- True Hacker Challenges ------------ None Game ------ Seed SurgeContainmentAccelerator Manual? 0 Play Time 00:31:24 Cumulative 47.5 hours Start 2024.05.06 @ 19:08:42 End 2024.05.06 @ 19:47:09 Sessions 1 Manual Loads 0 Difficulty Rogue Special Mode None Game No. 43 Rogue 43 Adventurer 0 Explorer 0 Win Type - Total 1 Types 1/0/0/0/0/0/0/0/0 Lore% 11 Gallery% 32 Achievement% 28 Wizard Run 0 Options --------- Layout 0 ASCII 0 Keyboard 1 Movement Numpad Keybinds 0 Fullscreen 2 Font 18/SmallcapsGlow Map View 76x50 Zoom Use 0% Tactical HUD 1 Map Filters NONE Filters NONE Steam 1 RUN: 8c8e9454-c415-4d41-88c1-2cfdf5863332